bitfinex/quotes_ETHUSD_20241204
["timestamp","ask_amount","ask_price","bid_price","bid_amount"]
[1733349786343,2.86925544,3841.7,3839.9,1.5502]
[1733349786557,1.35888662,3841.6,3840.0,0.15502]
[1733349786704,1.6578,3841.6,3840.0,0.15502]
[1733349786908,2.13387657,3841.6,3840.0,0.15502]
[1733349787144,2.60315,3841.5,3840.0,0.15502]
[1733349787348,1.35880395,3841.4,3840.0,0.15502]
[1733349787557,0.88272738,3841.3,3840.0,0.15502]
[1733349787846,0.27140793,3841.3,3840.0,0.15502]
[1733349788416,0.23874474,3841.2,3840.0,0.15502]
[1733349788845,0.27140793,3841.3,3840.0,0.15502]
[1733349788846,0.51015267,3841.3,3840.0,0.15502]
[1733349789061,0.23874474,3841.2,3840.0,0.15502]
[1733349789346,0.23874474,3841.2,3838.9,0.2]
[1733349789347,1.5952,3841.0,3838.9,1.6147]
[1733349789718,0.4774881,3840.9,3839.8,3.0]
[1733349789921,0.4774881,3840.8,3838.8,1.6147]
[1733349790122,3.0,3842.0,3838.8,1.6147]
[1733349790123,1.6429,3840.6,3838.8,1.6147]
[1733349790307,0.23874474,3840.5,3839.5,3.0]
[1733349790515,0.23874474,3840.5,3838.9,0.20187009]
[1733349790516,1.88164336,3840.6,3838.9,0.20187009]
[1733349790517,0.23874474,3840.4,3838.9,0.20187009]
[1733349790837,1.6429,3840.6,3838.9,0.20187009]
[1733349790838,0.23874474,3840.3,3838.9,0.20187009]
[1733349791152,0.4774881,3840.4,3838.9,0.20187009]
[1733349791360,0.47813279,3840.3,3839.0,0.18165701]
[1733349791559,0.23906662,3840.3,3839.0,0.18165701]
[1733349791712,0.23906662,3840.2,3839.0,0.18165701]
[1733349791913,0.23906662,3840.1,3839.3,3.0]
[1733349792226,2.60388,3840.5,3839.0,0.18165701]
[1733349792227,0.23906662,3840.0,3839.0,0.18165701]
[1733349792419,2.60388,3840.5,3839.0,0.18165701]
[1733349792420,0.47813279,3840.2,3839.0,0.18165701]
[1733349792624,0.23906662,3840.1,3839.0,0.18165701]
[1733349792826,0.23906662,3840.0,3839.0,0.18165701]
[1733349793026,0.47813279,3840.2,3839.0,0.18165701]
[1733349793222,0.23906662,3840.1,3839.0,0.18165701]
[1733349793540,1.629,3839.9,3838.8,1.6147]
[1733349793759,2.10713279,3839.9,3837.7,0.40135147]
[1733349793915,0.47813279,3839.8,3837.8,1.6059]
[1733349794257,0.23906662,3839.7,3837.8,1.6059]
[1733349794408,0.23906662,3839.7,3837.9,0.16059]
[1733349794610,0.23906617,3839.8,3837.9,0.16059]
[1733349794611,0.23906662,3839.8,3837.9,0.16059]
[1733349794926,1.6013,3839.6,3837.9,0.16059]
[1733349795117,2.6045,3839.5,3837.9,0.16059]
[1733349795313,0.23906617,3839.4,3837.9,0.16059]
[1733349795517,0.23906617,3839.4,3837.8,1.6059]
[1733349795518,0.23906662,3839.5,3838.0,0.176649]
[1733349795846,1.60080306,3840.3,3838.0,0.176649]
[1733349795847,4.70281279,3839.4,3838.0,0.176649]
[1733349796021,0.47813279,3839.3,3838.0,0.176649]
[1733349796353,0.47813279,3839.3,3836.6,1.586]
[1733349796354,1.5002,3839.1,3836.6,1.586]
[1733349796550,0.23906662,3839.0,3836.9,1.586]
[1733349796755,0.47813279,3839.0,3837.0,0.02605464]
[1733349796960,1.5002,3839.1,3837.1,1.586]
[1733349797257,1.5002,3839.1,3837.3,1.586]
[1733349797460,1.5002,3839.1,3837.4,0.1612053]
[1733349797755,0.23906662,3839.2,3837.5,1.55955299]
[1733349797960,0.23906617,3839.5,3837.5,1.55955299]
[1733349798165,1.86296662,3839.8,3838.4,1.5602]
[1733349798316,1.86296662,3839.8,3838.6,3.0]
[1733349798654,0.23906662,3839.7,3838.6,3.0]
[1733349799161,0.23906662,3839.6,3838.5,0.15602]
[1733349799317,0.47813279,3839.7,3838.5,0.15602]
[1733349799516,0.23906662,3839.6,3838.6,0.171622]
[1733349799718,0.23906662,3839.7,3838.6,0.171622]
[1733349800071,1.6239,3839.8,3838.6,0.171622]
[1733349801128,2.60377,3840.6,3839.2,1.6264]
[1733349801129,0.47813279,3840.0,3839.2,1.6264]
[1733349801323,0.23890709,3840.1,3839.3,0.4285722]
[1733349801561,1.5697,3840.2,3839.2,1.6264]
[1733349801943,1.80860709,3840.2,3839.2,1.6264]
[1733349802140,1.5697,3840.2,3839.2,1.6264]
[1733349803243,1.6056,3840.6,3839.5,3.0]
[1733349803452,0.47781422,3840.5,3839.5,3.0]
[1733349803820,0.47781422,3840.5,3839.2,1.6264]
[1733349803821,0.47781422,3840.4,3839.2,1.6264]
[1733349803941,0.47781422,3840.3,3839.5,3.0]
[1733349804137,1.6056,3840.6,3839.5,3.0]
[1733349804138,0.47781422,3840.4,3839.5,3.0]
[1733349804385,1.12175912,3840.3,3839.5,3.0]
[1733349804601,1.80209227,3840.4,3839.3,0.16264]
[1733349804738,1.12184296,3840.3,3839.4,0.178904]
[1733349804941,1.12184296,3840.3,3839.2,1.6264]
[1733349804942,0.23890709,3840.3,3839.2,1.6264]
[1733349805197,0.23890709,3840.3,3838.6,0.02604221]
[1733349805198,1.5146,3840.2,3838.7,1.5814]
[1733349805366,1.5146,3840.2,3839.5,3.0]
[1733349805567,1.99241422,3840.2,3838.7,1.5814]
[1733349805779,1.5146,3840.2,3838.7,1.5814]
[1733349806082,0.88352867,3840.1,3838.8,0.19841625]
[1733349806243,0.47781422,3840.1,3838.8,0.19841625]
[1733349806448,3.05961626,3840.2,3838.8,0.19841625]
[1733349806679,1.36165087,3840.1,3838.8,0.19841625]
[1733349806879,1.06720204,3840.4,3839.5,3.0]
[1733349807082,3.15640306,3840.6,3838.9,1.5214]
[1733349807083,2.42834492,3840.5,3838.9,1.5214]
[1733349807385,1.95067041,3840.4,3839.5,3.0]
[1733349807591,0.88346837,3840.3,3839.5,3.0]
[1733349807892,1.54465524,3840.4,3839.0,0.17198163]
[1733349808050,0.88361784,3840.3,3839.1,0.17194224]
[1733349808250,0.88361784,3840.3,3839.5,3.0]
[1733349808566,2.87012849,3840.5,3839.5,3.0]
[1733349808876,0.4774532,3840.4,3839.6,0.3]
[1733349809200,0.4774532,3840.5,3839.1,0.17194224]
[1733349809489,0.4774532,3840.5,3839.5,3.0]
[1733349809695,0.4774532,3840.5,3839.1,0.17194224]
[1733349810407,0.4774532,3840.5,3839.2,0.02604071]
[1733349810556,0.4774532,3840.5,3839.1,0.17194224]
[1733349810754,2.0330532,3840.6,3839.2,0.0260407]
[1733349810985,2.0330532,3840.6,3840.0,3.0]
[1733349811188,0.27162107,3840.7,3840.0,0.3]
[1733349811189,0.74907427,3840.7,3840.0,0.3]
[1733349811506,1.76319324,3841.0,3839.5,1.6186]
[1733349811656,0.27156737,3841.1,3840.3,3.0]
[1733349811965,0.47717724,3841.3,3840.4,1.6186]
[1733349812164,1.76319805,3841.4,3840.4,1.6186]
[1733349812359,1.76319805,3841.4,3839.8,1.5121]
[1733349812360,0.88322832,3841.3,3839.8,1.5121]
[1733349812572,3.52933036,3841.2,3839.8,1.66331]
[1733349812799,3.27506725,3841.1,3839.8,1.66331]
[1733349812954,3.27506725,3841.0,3839.8,1.5121]
[1733349813295,0.88322832,3840.9,3839.8,1.5121]
[1733349813489,0.88321571,3840.8,3839.8,1.5121]
[1733349813688,0.88321571,3840.8,3839.1,0.5730708]
[1733349813689,1.5888,3840.9,3839.4,1.6386]
[1733349814001,1.5888,3840.9,3839.5,0.16386]
[1733349814292,2.06563868,3840.9,3839.7,0.03084201]
[1733349814601,1.95066499,3840.8,3839.9,3.0]
[1733349814757,1.95066499,3840.8,3839.7,0.03084201]
[1733349814758,2.42750367,3840.8,3839.7,0.03084201]
[1733349814964,1.95066499,3840.7,3839.9,3.0]
[1733349815170,0.47683868,3840.8,3839.9,3.0]
[1733349815171,1.95066499,3840.6,3839.9,3.0]
[1733349815415,0.88346295,3840.5,3839.7,0.03084201]
[1733349815717,0.23841934,3840.6,3839.9,3.0]
[1733349816006,1.06720204,3840.7,3839.9,3.0]
[1733349816509,1.95064787,3840.7,3839.7,0.03084201]
[1733349816711,0.88344583,3840.6,3839.9,3.0]
[1733349816872,0.88344583,3840.5,3839.7,0.03084201]
[1733349817069,1.06720204,3840.7,3839.7,0.03084201]
[1733349817405,2.18905771,3840.7,3839.9,3.0]
[1733349817608,0.88343633,3840.6,3839.7,0.03084201]
[1733349817771,0.88359432,3840.5,3839.7,0.03084201]
[1733349817974,1.54402029,3840.7,3839.9,3.0]
[1733349818187,0.88363827,3840.6,3839.9,3.0]
[1733349818507,0.88363827,3840.6,3839.7,0.03084201]
[1733349818710,1.54402029,3840.7,3839.9,3.0]
[1733349819009,0.88357754,3840.6,3839.9,3.0]
[1733349819183,0.23841934,3840.7,3839.9,3.0]
[1733349819379,0.88354483,3840.6,3839.9,3.0]
[1733349819595,1.06720204,3840.7,3839.7,0.03084201]
[1733349819796,2.42749971,3840.7,3839.7,0.03084201]
[1733349819971,0.88349454,3840.6,3839.7,0.03084201]
[1733349820177,1.54400517,3840.7,3839.7,0.03084201]
[1733349820371,0.8834704,3840.6,3839.7,0.03084201]
[1733349820614,1.06720204,3840.7,3839.9,3.0]
[1733349820911,2.86931509,3840.8,3839.9,3.3030842]
[1733349821208,0.88338863,3840.7,3839.9,3.3030842]
[1733349821407,1.06720204,3840.8,3839.9,3.3030842]
[1733349821408,0.88338863,3840.6,3839.9,3.3030842]
[1733349821595,1.06720204,3840.7,3839.9,3.3030842]
[1733349821810,2.18919684,3840.7,3839.9,3.3030842]
[1733349821974,0.88362652,3840.6,3839.9,3.3030842]
[1733349822175,1.54395559,3840.7,3839.9,0.3030842]
[1733349822415,0.88344585,3840.6,3839.9,3.0]
[1733349822584,0.88344585,3840.6,3839.7,0.03084201]
[1733349822793,0.88344585,3840.6,3839.9,3.0]
[1733349823083,1.54381895,3840.8,3839.7,0.03084201]
[1733349823282,2.42689842,3840.8,3839.9,3.0]
[1733349823614,0.88304168,3840.7,3839.9,3.0]
[1733349823811,0.88273799,3840.6,3839.7,0.03084201]
[1733349824120,1.5888,3840.9,3840.5,3.0]
[1733349824321,1.5888,3840.9,3840.1,1.6019]
[1733349825912,1.06720204,3841.5,3840.2,0.02603507]
[1733349826113,1.06720204,3841.8,3840.4,1.551]
[1733349826274,1.06720204,3841.7,3840.5,0.21402277]
[1733349826480,1.30554817,3841.8,3840.5,0.18799342]
[1733349826717,0.23834613,3841.9,3841.1,3.0]
[1733349826876,1.5805,3842.0,3840.7,1.5148]
[1733349827078,1.5805,3842.0,3841.1,3.0]
[1733349827387,1.5805,3842.0,3840.8,0.19891138]
[1733349827589,1.5444,3842.3,3840.8,0.19891138]
[1733349827918,1.5444,3842.6,3841.7,1.5302]
[1733349828081,1.5444,3842.6,3841.8,0.02602509]
[1733349828278,1.60080306,3842.9,3841.8,3.02602509]
[1733349828279,1.06720204,3842.9,3841.8,3.02602509]
[1733349828479,2.84985102,3843.0,3842.1,3.0]
[1733349828680,1.5444,3843.0,3842.1,3.0]
[1733349828882,1.5444,3843.0,3841.0,1.6002]
[1733349829191,2.71390204,3842.7,3841.0,1.6002]
[1733349829494,2.61084695,3843.0,3841.0,1.6002]
[1733349829495,0.55,3842.4,3841.0,1.6002]
[1733349829684,0.55,3842.3,3841.0,1.6002]
[1733349829886,0.55,3841.9,3840.3,1.5863]
[1733349830143,0.55,3841.9,3840.4,0.18892031]
[1733349831486,0.55,3841.7,3840.4,0.18892031]
[1733349831819,0.55,3841.7,3840.3,1.5863]
[1733349832336,0.55,3841.7,3841.0,3.0]
[1733349832492,1.6514,3841.8,3841.1,0.02603225]
[1733349832684,0.55,3841.7,3840.3,1.5863]
[1733349833020,0.55,3841.7,3841.0,3.0]
[1733349834178,1.6407,3841.6,3841.0,3.0]
[1733349834373,0.55,3841.5,3841.0,3.0]
[1733349834617,0.55,3841.5,3839.8,1.92584028]
[1733349835317,0.4760777,3841.8,3839.8,1.92584028]
[1733349835318,0.23803776,3841.8,3840.9,1.5964]
[1733349835543,1.5919,3842.0,3841.4,3.0]
[1733349836178,1.5919,3842.0,3841.0,0.15964]
[1733349838476,1.5919,3842.0,3841.1,0.02602991]
[1733349838720,1.5965,3842.5,3841.0,0.15964]
[1733349838944,1.5965,3842.5,3841.5,3.0]
[1733349839388,1.5965,3842.5,3841.0,0.15964]
[1733349839592,1.5965,3842.5,3840.9,1.5964]
[1733349839791,0.55,3842.4,3840.9,1.5964]
[1733349840093,1.6336,3842.3,3840.9,1.5964]
[1733349840309,0.55,3842.0,3840.5,1.5576]
[1733349840941,0.55,3841.8,3840.5,1.5576]
[1733349841097,0.55,3841.8,3840.5,1.71336]
[1733349841295,1.6336,3841.9,3840.6,0.02603179]
[1733349841605,2.70129,3844.3,3840.6,0.02603179]
[1733349841606,1.6336,3842.3,3841.7,3.0]
[1733349842198,1.6336,3842.3,3840.7,1.5576]
[1733349842632,0.55,3842.2,3841.6,3.0]
[1733349842927,0.55,3842.0,3840.7,1.5576]
[1733349843135,0.55,3842.0,3840.7,1.77055305]
[1733349843899,0.55,3841.8,3840.7,1.77055305]
[1733349844307,0.55,3841.9,3840.7,1.77055305]
[1733349844510,1.5131,3841.8,3839.9,0.3964939]
[1733349844842,1.43210574,3841.7,3839.9,0.02603131]
[1733349844999,0.88208769,3841.6,3839.9,0.02603131]
[1733349845201,0.55,3841.5,3839.8,1.8268]
[1733349845401,1.5131,3841.4,3839.8,1.85283261]
[1733349845628,0.55,3841.3,3839.9,0.22565968]
[1733349845829,0.55,3841.3,3838.9,0.2598]
[1733349845830,1.5131,3840.8,3839.1,1.567]
[1733349846003,0.55,3840.7,3839.1,1.59303837]
[1733349846831,1.5131,3840.8,3839.1,1.567]
[1733349846832,0.55,3840.8,3839.1,1.567]
[1733349847104,0.55,3840.6,3839.1,1.79051944]
[1733349847307,0.55,3840.6,3839.1,1.81655795]
[1733349847613,0.55,3840.6,3839.1,1.79051944]
[1733349847814,1.5131,3840.4,3839.1,1.79051944]
[1733349848044,0.55,3840.3,3839.1,1.79051944]
[1733349848347,0.55,3839.9,3838.4,1.567]
[1733349848507,0.55,3839.7,3838.4,1.567]
[1733349850149,0.55,3839.7,3838.5,0.02604402]
[1733349851646,0.55,3839.7,3838.4,1.59304199]
[1733349851845,0.55,3839.7,3838.5,0.1593042]
[1733349852029,0.55,3839.7,3838.6,0.0260422]
[1733349852354,0.55,3839.7,3838.5,0.1593042]
[1733349852777,1.5131,3839.8,3837.5,1.5868]
[1733349852778,0.55,3839.3,3837.5,1.5868]
[1733349852982,1.555,3839.2,3837.5,1.5868]
[1733349853133,0.55,3839.1,3837.5,1.5868]
[1733349853539,1.6173,3839.0,3837.5,1.5868]
[1733349853734,0.55,3838.9,3837.5,1.5868]
[1733349853938,0.55,3838.9,3837.6,0.15868]
[1733349854237,0.55,3838.7,3837.1,1.6309]
[1733349854657,0.55,3838.7,3837.2,0.02605087]
[1733349854983,0.55,3838.7,3837.2,0.02605086]
[1733349856433,0.55,3838.7,3837.1,2.34652012]
[1733349856635,0.55,3838.7,3837.2,3.2607029]
[1733349856837,0.55,3838.7,3837.2,3.23465201]
[1733349857335,0.55,3838.5,3837.2,3.23465201]
[1733349858873,0.55,3838.5,3838.3,0.03084201]
[1733349862337,1.06579547,3839.5,3838.3,0.03084201]
[1733349862338,1.663,3838.4,3838.3,0.03084201]
[1733349864632,0.55,3838.8,3836.7,1.5288]
[1733349864633,1.5344,3838.3,3836.7,1.5288]
[1733349864838,1.5344,3838.2,3836.8,0.15288]
[1733349865740,1.6233,3838.7,3837.0,1.622]
[1733349866063,1.6233,3838.7,3837.2,1.622]
[1733349866256,1.6233,3838.7,3837.3,0.02604995]
[1733349866443,1.6233,3838.7,3838.3,3.0]
[1733349867074,1.6233,3838.7,3837.3,0.02604995]
[1733349867341,0.55,3838.6,3838.3,3.0]
[1733349867964,0.55,3838.6,3837.4,0.19605148]
[1733349870046,0.55,3838.6,3838.3,3.0]
[1733349870472,0.55,3838.6,3837.4,0.19605148]
[1733349870876,0.55,3838.6,3838.3,3.0]
[1733349871197,1.6479,3838.5,3837.2,1.622]
[1733349871348,1.6479,3838.3,3836.8,1.79678]
[1733349871545,1.6479,3838.1,3836.9,0.179678]
[1733349871947,1.6479,3838.1,3836.4,10.41176453]
[1733349871948,0.55,3838.0,3836.4,10.01010101]
[1733349872144,0.55,3838.0,3836.5,0.02605568]
[1733349872355,0.55,3838.0,3836.4,10.01010101]
[1733349872576,0.55,3838.0,3836.5,0.02605594]
[1733349873558,0.55,3838.0,3836.5,3.02605594]
[1733349873758,0.55,3838.0,3836.6,1.51001871]
[1733349876198,1.6479,3838.1,3836.8,1.6573]
[1733349876550,1.6479,3838.1,3836.7,3.32141242]
[1733349876551,1.6479,3838.1,3836.6,4.51001871]
[1733349877654,0.55,3838.0,3836.6,4.51001871]
[1733349877854,0.55,3837.8,3836.6,4.51001871]
[1733349878162,0.55,3837.8,3836.7,1.61774197]
[1733349879934,1.6206,3837.9,3836.8,0.0260559]
[1733349880056,1.6516,3838.3,3836.9,45.680566]
[1733349880392,1.6516,3838.3,3837.0,0.34746432]
[1733349880590,1.6516,3838.3,3837.1,0.52470643]
[1733349880797,1.6516,3838.3,3837.2,0.02605183]
[1733349881496,1.6516,3838.3,3837.1,0.52470643]
[1733349881701,1.6516,3838.3,3837.0,0.02605184]
[1733349881853,0.23806736,3838.7,3837.0,0.02605184]
[1733349882189,0.23806736,3838.7,3837.1,1.6607]
[1733349882404,1.83046736,3838.6,3836.8,3.0]
[1733349882711,1.5924,3838.3,3836.8,3.6278442]
[1733349882916,1.06043097,3838.9,3836.8,3.6278442]
[1733349882917,0.55,3838.1,3836.8,3.6278442]
[1733349883121,0.55,3837.9,3836.8,3.6278442]
[1733349883419,0.78806736,3837.9,3836.8,3.6278442]
[1733349883600,1.02632981,3837.9,3836.8,0.6278442]
[1733349883780,1.02632981,3837.9,3836.9,0.22455862]
[1733349883976,0.78806736,3837.9,3836.9,0.22455862]
[1733349884195,1.02632981,3837.9,3836.9,0.22455862]
[1733349884405,0.78806736,3837.9,3836.9,0.22455862]
[1733349884732,0.78806736,3837.9,3837.6,3.0]
[1733349884874,0.78806736,3837.9,3836.9,0.22455862]
[1733349885076,0.78806736,3837.9,3837.0,0.24701448]
[1733349885288,0.55,3837.9,3837.0,0.24701448]
[1733349885479,0.78850554,3837.9,3837.0,0.24701448]
[1733349885676,0.55,3837.9,3837.0,0.24701448]
[1733349886114,0.78850554,3837.9,3837.0,0.24701448]
[1733349886904,0.55,3837.9,3837.0,0.24701448]
[1733349887119,0.55,3837.9,3837.1,0.42262836]
[1733349887314,0.55,3837.9,3836.9,0.32536923]
[1733349887514,1.5924,3838.0,3836.9,0.32536923]
[1733349887679,1.5924,3838.0,3836.8,0.02605568]
[1733349887884,1.5924,3838.0,3836.9,0.02605348]
[1733349888210,0.47703611,3838.3,3837.0,1.5981]
[1733349888211,1.5363,3838.3,3837.0,1.5981]
[1733349888409,1.5363,3838.3,3837.1,0.18846775]
[1733349889221,1.5363,3838.3,3837.1,0.16241535]
[1733349889518,1.5363,3838.3,3838.1,3.0]
[1733349889720,1.5363,3838.3,3836.4,11.86617024]
[1733349889906,1.6086,3838.0,3836.4,10.01010101]
[1733349890238,1.5815,3837.7,3836.4,10.01010101]
[1733349890415,1.1193173,3837.6,3836.4,10.01010101]
[1733349890623,1.82001866,3837.5,3836.4,10.01010101]
[1733349890922,0.23851866,3837.4,3836.4,10.01010101]
[1733349891095,1.6453,3837.3,3836.4,10.01010101]
[1733349891300,1.6453,3837.3,3836.5,3.0]
[1733349892038,1.6453,3837.3,3836.6,0.02606042]
[1733349892243,1.6507,3837.6,3836.8,4.604]
[1733349892392,1.6507,3837.6,3836.8,1.604]
[1733349893724,1.6507,3837.6,3836.5,4.70992828]
[1733349893924,1.6507,3837.6,3836.6,1.66742148]
[1733349895630,1.06043097,3837.9,3836.7,4.5683]
[1733349895930,0.2386348,3837.9,3836.7,4.5683]
[1733349896133,1.12161136,3837.9,3836.7,4.5683]
[1733349896308,0.88297656,3837.8,3836.7,4.5683]
[1733349896523,3.26786982,3837.7,3836.8,0.66446397]
[1733349896718,0.88297656,3837.6,3836.8,0.66446397]
[1733349897535,0.88297656,3837.5,3836.8,0.66446397]
[1733349897703,1.06043097,3837.6,3836.8,0.66446397]
[1733349897905,0.88349751,3837.5,3836.8,0.66446397]
[1733349898318,0.47742138,3837.7,3836.8,0.66446397]
[1733349898634,0.47742138,3837.7,3836.6,1.66742148]
[1733349898635,2.45985761,3837.6,3836.6,1.66742148]
[1733349898835,1.5759,3837.6,3836.6,1.66742148]
[1733349899694,0.23881135,3837.7,3836.6,1.66742148]
[1733349899695,0.23881135,3837.7,3836.7,0.02605751]
[1733349899895,2.70773097,3838.3,3836.8,1.5445]
[1733349900094,0.88415764,3838.2,3836.9,0.34906057]
[1733349900331,1.6473,3838.3,3836.9,0.34906057]
[1733349900533,2.12521494,3838.3,3836.8,2.00594868]
[1733349900836,1.12340895,3838.2,3836.9,0.02605276]
[1733349901021,1.06043097,3838.5,3837.1,1.8342]
[1733349901196,1.6068,3838.8,3837.3,1.5744]
[1733349901402,1.6068,3838.8,3837.4,0.02604882]
[1733349901621,2.08475291,3838.8,3838.3,3.0]
[1733349901793,1.84567282,3838.8,3837.3,1.5744]
[1733349901997,1.5931,3838.6,3837.0,1.90965014]
[1733349902302,1.5931,3838.6,3836.7,0.2598]
[1733349902303,1.06043097,3838.2,3836.7,1.8207]
[1733349902607,2.65353097,3838.3,3837.0,1.533]
[1733349902801,1.5931,3838.3,3837.0,1.533]
[1733349909441,0.55,3838.2,3837.0,1.533]
[1733349909648,0.55,3838.2,3837.0,1.55905344]
[1733349909827,0.55,3838.2,3837.1,0.21749851]
[1733349910233,0.55,3838.6,3837.2,1.6327]
[1733349910408,0.55,3838.4,3837.2,1.6327]
[1733349910748,0.55,3838.5,3837.2,1.6327]
[1733349910917,2.93848843,3838.6,3837.2,1.6327]
[1733349911123,0.55,3838.4,3837.3,0.1876252]
[1733349911451,2.93848843,3838.6,3837.3,0.1876252]
[1733349911633,1.6492,3838.7,3838.3,3.0]
[1733349911634,0.55,3838.4,3838.3,3.0]
[1733349911837,0.55,3838.4,3837.5,1.5665]
[1733349912162,2.70963097,3838.7,3837.5,1.5665]
[1733349912163,1.06043097,3838.5,3837.6,0.17541252]
[1733349912309,1.43502852,3838.4,3837.6,0.17541252]
[1733349912648,0.55,3838.4,3838.3,3.0]
[1733349912850,1.43487227,3838.4,3837.6,0.17541252]
[1733349913049,0.55,3838.4,3837.6,0.17541252]
[1733349913252,0.55,3838.5,3837.6,0.17541252]
[1733349913453,0.88490259,3838.4,3838.3,3.0]
[1733349913664,0.88490259,3838.4,3837.5,1.5665]
[1733349913665,0.55,3838.3,3837.5,1.5665]
[1733349913830,0.55,3838.3,3837.5,1.76328174]
[1733349914030,0.55,3838.4,3837.5,1.76328174]
[1733349914233,0.55,3838.2,3837.5,1.76328174]
[1733349915168,0.55,3838.0,3837.5,0.19678174]
[1733349915455,1.06043097,3838.3,3837.2,1.97881743]
[1733349915456,0.55,3838.2,3837.2,1.97881743]
[1733349915661,0.55,3838.3,3837.2,1.97881743]
[1733349915819,0.55,3838.1,3837.2,1.97881743]
[1733349916021,0.55,3838.3,3837.2,5.33330745]
[1733349916254,0.55,3838.3,3837.4,1.585]
[1733349916457,1.06043097,3838.6,3837.6,3.0]
[1733349916663,0.88499958,3838.5,3837.7,1.585]
[1733349916836,1.06043097,3838.7,3837.7,1.585]
[1733349917035,0.88501094,3838.6,3837.7,1.91343692]
[1733349917259,0.88501094,3838.6,3837.8,0.19394862]
[1733349917557,2.38793035,3838.8,3837.8,0.19394862]
[1733349917764,0.88475426,3838.7,3837.8,0.19394862]
[1733349917924,0.55,3838.6,3837.8,0.19394862]
[1733349918121,0.55,3838.8,3837.8,0.21999774]
[1733349918321,0.55,3838.9,3838.0,1.585]
[1733349918827,1.61043097,3838.9,3838.0,1.585]
[1733349919236,0.55,3838.9,3838.0,1.585]
[1733349919722,1.59064646,3839.1,3838.0,1.585]
[1733349919723,1.20107743,3839.1,3838.0,1.585]
[1733349920372,0.47779974,3839.2,3838.0,1.585]
[1733349920546,0.47779974,3839.2,3838.1,0.21790342]
[1733349921583,0.12043285,3839.3,3838.1,0.21790342]
[1733349921974,0.55,3839.2,3838.1,0.21790342]
[1733349922622,2.67669548,3839.5,3838.1,0.24395038]
[1733349922850,2.67669548,3839.5,3838.1,0.21790342]
[1733349923025,2.67669548,3839.6,3838.2,0.23969376]
[1733349923429,2.67669548,3839.5,3838.2,0.23969376]
[1733349923640,4.98205144,3839.9,3838.2,0.23969376]
[1733349923641,2.67669548,3839.6,3838.2,0.23969376]
[1733349923833,2.67669548,3839.5,3838.2,0.23969376]
[1733349924034,2.67669548,3839.5,3838.7,3.0]
[1733349924289,2.67669548,3839.5,3838.2,0.23969376]
[1733349925328,3.22669548,3839.4,3837.8,1.6652]
[1733349925672,0.55,3839.0,3837.8,1.6652]
[1733349925853,0.55,3839.0,3836.5,3.0]
[1733349925854,0.55,3838.8,3836.9,1.6652]
[1733349926054,0.55,3838.6,3836.9,1.6652]
[1733349926232,0.55,3838.4,3837.0,0.20707116]
[1733349926982,2.67885143,3838.7,3837.2,1.6652]
[1733349927145,2.67885143,3838.7,3837.4,1.654]
[1733349927341,2.67885143,3838.7,3837.0,0.20707116]
[1733349927342,2.67885143,3838.7,3837.5,2.20656808]
[1733349927651,0.6091,3838.9,3837.6,1.654]
[1733349927886,0.6091,3838.9,3837.7,0.02604998]
[1733349928061,0.6091,3838.9,3838.7,3.0]
[1733349928460,0.6091,3839.2,3837.6,2.00597072]
[1733349928708,0.55,3839.1,3837.7,0.22065678]
[1733349929008,1.87869101,3839.1,3837.8,0.02604998]
[1733349929207,1.32864104,3839.0,3838.7,3.0]
[1733349929365,2.93552359,3838.9,3837.7,0.24670676]
[1733349929567,1.32864104,3838.8,3837.8,1.86556275]
[1733349929880,0.40029381,3838.9,3837.9,0.02604991]
[1733349930080,1.60688255,3839.0,3837.8,1.86556275]
[1733349930570,1.60688255,3839.0,3838.7,3.0]
[1733349930902,2.35997799,3839.2,3837.8,1.89161272]
[1733349931096,0.3833561,3839.1,3837.9,0.18916127]
[1733349931632,0.38367578,3839.1,3837.9,0.18916127]
[1733349931776,0.21598255,3839.2,3837.9,0.18916127]
[1733349931974,2.52767122,3839.3,3838.7,3.0]
[1733349931975,0.74365377,3839.3,3838.7,3.0]
[1733349932188,2.68007971,3839.4,3837.9,0.18916127]
[1733349932380,2.68007971,3839.5,3838.0,0.18320613]
[1733349932805,0.68007971,3839.5,3838.0,0.18320613]
[1733349933469,0.23974803,3839.4,3838.0,0.18320613]
[1733349933786,0.47949582,3839.3,3838.0,0.18320613]
[1733349933978,0.23974827,3839.2,3838.0,0.18320613]
[1733349934176,1.45699892,3839.9,3838.0,0.18320613]
[1733349935111,2.60403,3840.2,3838.0,0.18320613]
[1733349935112,5.81041486,3840.2,3838.0,0.18320613]
[1733349935521,2.06102892,3840.2,3838.0,0.18320613]
[1733349935751,0.2,3840.3,3837.8,1.6429]
[1733349936037,2.60431,3839.8,3838.5,1.30256]
[1733349936525,3.75170955,3840.0,3838.5,1.30256]
[1733349936816,3.75155077,3840.1,3838.2,3.0]
[1733349937019,2.60428,3839.9,3838.6,1.30255]
[1733349937381,3.75155077,3840.0,3838.6,1.30255]
[1733349937608,0.2,3839.8,3837.8,1.6429]
[1733349937933,2.60473,3839.2,3837.9,1.30278]
[1733349938226,6.35602077,3839.6,3837.9,1.30278]
[1733349938586,3.75155077,3839.6,3837.3,1.6528]
[1733349938901,0.88629145,3839.5,3838.3,1.30265]
[1733349939097,0.88629145,3839.4,3838.1,1.30271]
[1733349939299,3.75155077,3839.6,3838.1,1.30271]
[1733349939595,2.64202959,3839.5,3837.4,4.62811814]
[1733349939795,2.67977321,3838.9,3838.3,1.30265]
[1733349940031,2.67977321,3838.9,3838.3,1.30266]
[1733349940032,1.07203094,3838.4,3838.3,1.30266]
[1733349940245,3.51143564,3838.8,3838.4,1.30262]
[1733349940246,2.40178031,3838.5,3838.4,1.30262]
[1733349940524,0.40189988,3838.7,3838.6,1.30255]
[1733349940899,0.04765513,3838.9,3838.6,1.30255]
[1733349941092,0.04765513,3838.9,3838.8,1.30249]
[1733349941517,3.21649137,3839.7,3839.1,1.30236]